[Event "Schack-SM 2023: Mastarklassen"]
[Site "Helsingborg Arena, Mellersta Stenbocksgatan 14, Helsingborg, Sweden"]
[Date "2023.07.05"]
[Round "5.7"]
[White "Troberg Eskola, Love"]
[Black "Joensson, Jacob"]
[Result "0-1"]
[TimeControl "90 minutes for 40 moves + 30 minutes for the rest of games + 30 seconds per move from move one."]
[WhiteElo "2038"]
[BlackElo "2039"]

1. e4 {[%clk 01:30:58]} {[%emt 00:00:02]} e5 {[%clk 01:30:56]} {[%emt
00:00:05]} 2. Nf3 {[%clk 01:31:22]} {[%emt 00:00:06]} Nc6 {[%clk 01:31:21]}
{[%emt 00:00:05]} 3. d4 {[%clk 01:31:47]} {[%emt 00:00:04]} exd4 {[%clk
01:31:46]} {[%emt 00:00:05]} 4. Bc4 {[%clk 01:32:12]} {[%emt 00:00:05]} Nf6
{[%clk 01:31:44]} {[%emt 00:00:31]} 5. O-O {[%clk 01:31:56]} {[%emt 00:00:47]}
Be7 {[%clk 01:30:07]} {[%emt 00:02:07]} 6. Re1 {[%clk 01:28:57]} {[%emt
00:03:28]} d6 {[%clk 01:28:18]} {[%emt 00:02:19]} 7. Nxd4 {[%clk 01:28:37]}
{[%emt 00:00:50]} O-O {[%clk 01:27:55]} {[%emt 00:00:52]} 8. Nc3 {[%clk
01:28:37]} {[%emt 00:00:32]} Nxd4 {[%clk 01:18:56]} {[%emt 00:09:30]} 9. Qxd4
{[%clk 01:29:00]} {[%emt 00:00:07]} Re8 {[%clk 01:19:11]} {[%emt 00:00:16]} 10.
b3 {[%clk 01:26:29]} {[%emt 00:03:00]} Ng4 {[%clk 01:04:49]} {[%emt 00:14:53]}
11. Nd5 {[%clk 01:12:10]} {[%emt 00:14:48]} Bh4 {[%clk 01:04:18]} {[%emt
00:01:01]} 12. g3 {[%clk 01:09:08]} {[%emt 00:03:32]} c6 {[%clk 00:59:00]}
{[%emt 00:05:49]} 13. Nc3 {[%clk 00:49:36]} {[%emt 00:20:02]} Bf6 {[%clk
00:58:51]} {[%emt 00:00:38]} 14. Qd2 {[%clk 00:49:56]} {[%emt 00:00:10]} b5
{[%clk 00:58:20]} {[%emt 00:01:02]} 15. e5 {[%clk 00:44:59]} {[%emt 00:05:27]}
Bxe5 {[%clk 00:47:20]} {[%emt 00:11:30]} 16. Rxe5 {[%clk 00:45:16]} {[%emt
00:00:12]} dxe5 {[%clk 00:47:44]} {[%emt 00:00:07]} 17. Bd3 {[%clk 00:45:25]}
{[%emt 00:00:22]} f5 {[%clk 00:46:49]} {[%emt 00:01:25]} 18. f3 {[%clk
00:45:24]} {[%emt 00:00:32]} Nf6 {[%clk 00:44:16]} {[%emt 00:03:02]} 19. Qf2
{[%clk 00:45:07]} {[%emt 00:00:48]} e4 {[%clk 00:36:02]} {[%emt 00:08:44]} 20.
Bf1 {[%clk 00:44:50]} {[%emt 00:00:47]} exf3 {[%clk 00:34:17]} {[%emt
00:02:16]} 21. Bb2 {[%clk 00:44:19]} {[%emt 00:01:00]} Qb6 {[%clk 00:34:22]}
{[%emt 00:00:26]} 0-1

[Event "Schack-SM 2023: Veteran-SM 65+"]
[Site "Helsingborg Arena, Mellersta Stenbocksgatan 14, Helsingborg, Sweden"]
[Date "2023.07.05"]
[Round "5.2"]
[White "Franzen Hogberg, Thomas"]
[Black "Soderberg, Per"]
[Result "1/2-1/2"]
[TimeControl "90 minutes for 40 moves + 30 minutes for the rest of games + 30 seconds per move from move one."]
[BlackTitle "CM"]
[WhiteElo "1998"]
[BlackElo "2111"]

1. e4 {[%clk 01:30:50]} {[%emt 00:00:09]} c5 {[%clk 01:30:53]} {[%emt
00:00:07]} 2. Nf3 {[%clk 01:31:11]} {[%emt 00:00:09]} d6 {[%clk 01:31:17]}
{[%emt 00:00:07]} 3. d3 {[%clk 01:31:33]} {[%emt 00:00:07]} Nc6 {[%clk
01:31:15]} {[%emt 00:00:32]} 4. g3 {[%clk 01:31:55]} {[%emt 00:00:08]} g6
{[%clk 01:30:36]} {[%emt 00:01:09]} 5. Bg2 {[%clk 01:32:15]} {[%emt 00:00:09]}
Bg7 {[%clk 01:30:56]} {[%emt 00:00:10]} 6. O-O {[%clk 01:32:03]} {[%emt
00:00:43]} Nf6 {[%clk 01:25:48]} {[%emt 00:05:39]} 7. Nbd2 {[%clk 01:30:55]}
{[%emt 00:01:37]} O-O {[%clk 01:26:00]} {[%emt 00:00:18]} 8. c3 {[%clk
01:28:11]} {[%emt 00:03:14]} e5 {[%clk 01:22:41]} {[%emt 00:03:48]} 9. a4
{[%clk 01:25:24]} {[%emt 00:03:18]} h6 {[%clk 01:21:08]} {[%emt 00:02:02]} 10.
Nc4 {[%clk 01:18:18]} {[%emt 00:07:37]} Be6 {[%clk 01:20:54]} {[%emt 00:00:44]}
11. Nfd2 {[%clk 01:13:27]} {[%emt 00:05:22]} d5 {[%clk 01:17:23]} {[%emt
00:04:00]} 12. exd5 {[%clk 01:01:20]} {[%emt 00:12:38]} Bxd5 {[%clk 01:17:00]}
{[%emt 00:00:52]} 13. Ne4 {[%clk 01:00:47]} {[%emt 00:01:03]} Nxe4 {[%clk
01:10:39]} {[%emt 00:06:51]} 14. Bxe4 {[%clk 00:59:19]} {[%emt 00:01:59]} f5
{[%clk 01:10:34]} {[%emt 00:00:34]} 15. Bxd5+ {[%clk 00:55:26]} {[%emt
00:04:23]} Qxd5 {[%clk 01:10:31]} {[%emt 00:00:33]} 16. Ne3 {[%clk 00:55:45]}
{[%emt 00:00:10]} Qf7 {[%clk 01:08:34]} {[%emt 00:02:27]} 17. Ng2 {[%clk
00:53:32]} {[%emt 00:02:43]} Rad8 {[%clk 01:08:27]} {[%emt 00:00:38]} 18. Qe2
{[%clk 00:53:27]} {[%emt 00:00:35]} Qd5 {[%clk 01:06:45]} {[%emt 00:02:12]} 19.
Be3 {[%clk 00:43:39]} {[%emt 00:10:19]} b6 {[%clk 01:03:54]} {[%emt 00:03:21]}
20. Rad1 {[%clk 00:40:20]} {[%emt 00:03:48]} Rfe8 {[%clk 01:02:40]} {[%emt
00:01:43]} 21. f3 {[%clk 00:40:36]} {[%emt 00:00:15]} Kh7 {[%clk 01:02:22]}
{[%emt 00:00:48]} 22. Qc2 {[%clk 00:38:38]} {[%emt 00:02:28]} Re7 {[%clk
01:01:48]} {[%emt 00:01:04]} 23. Bc1 {[%clk 00:35:08]} {[%emt 00:04:01]} Rde8
{[%clk 00:59:25]} {[%emt 00:02:52]} 24. Ne3 {[%clk 00:32:36]} {[%emt 00:03:02]}
Qd8 {[%clk 00:57:17]} {[%emt 00:02:38]} 25. Kg2 {[%clk 00:24:00]} {[%emt
00:09:06]} Re6 {[%clk 00:52:21]} {[%emt 00:05:25]} 26. h4 {[%clk 00:23:24]}
{[%emt 00:01:07]} f4 {[%clk 00:48:08]} {[%emt 00:04:43]} 27. Nc4 {[%clk
00:21:55]} {[%emt 00:01:59]} fxg3 {[%clk 00:47:53]} {[%emt 00:00:45]} 28. Kxg3
{[%clk 00:21:27]} {[%emt 00:00:59]} Ne7 {[%clk 00:48:07]} {[%emt 00:00:16]} 29.
Ne3 {[%clk 00:21:38]} {[%emt 00:00:18]} Nf5+ {[%clk 00:47:20]} {[%emt
00:01:16]} 30. Nxf5 {[%clk 00:21:42]} {[%emt 00:00:27]} gxf5 {[%clk 00:47:44]}
{[%emt 00:00:07]} 31. Rh1 {[%clk 00:20:10]} {[%emt 00:02:01]} Qf6 {[%clk
00:45:22]} {[%emt 00:02:52]} 32. Kf2 {[%emt 00:04:55]} e4 {[%clk 00:44:33]}
{[%emt 00:01:17]} 33. dxe4 {[%clk 00:15:12]} {[%emt 00:01:05]} fxe4 {[%clk
00:44:55]} {[%emt 00:00:07]} 34. f4 {[%clk 00:14:39]} {[%emt 00:01:04]} Qf5
{[%clk 00:43:58]} {[%emt 00:01:26]} 35. Ke1 {[%clk 00:14:21]} {[%emt 00:00:49]}
Bf6 {[%clk 00:42:09]} {[%emt 00:02:19]} 36. Be3 {[%clk 00:13:47]} {[%emt
00:01:05]} Qg4 {[%clk 00:40:51]} {[%emt 00:01:47]} 37. Rd7+ {[%clk 00:09:55]}
{[%emt 00:04:23]} R8e7 {[%clk 00:39:30]} {[%emt 00:01:50]} 38. Rxe7+ {[%clk
00:09:37]} {[%emt 00:00:49]} Rxe7 {[%clk 00:39:53]} {[%emt 00:00:07]} 39. Qe2
{[%clk 00:09:18]} {[%emt 00:00:48]} Bxh4+ {[%clk 00:39:08]} {[%emt 00:01:15]}
40. Kf1 {[%clk 00:09:36]} {[%emt 00:00:12]} Qxe2+ {[%clk 00:36:35]} {[%emt
00:03:04]} 41. Kxe2 {[%clk 00:07:25]} {[%emt 00:02:41]} Bf6 {[%clk 00:36:50]}
{[%emt 00:00:14]} 42. f5 {[%clk 00:02:14]} {[%emt 00:05:42]} Bg7 {[%clk
00:36:59]} {[%emt 00:00:19]} 43. f6 {[%clk 00:02:39]} {[%emt 00:00:06]} Bxf6
{[%clk 00:37:19]} {[%emt 00:00:10]} 44. Rxh6+ {[%clk 00:03:00]} {[%emt
00:00:09]} Kg7 {[%clk 00:37:38]} {[%emt 00:00:11]} 45. Rh5 {[%clk 00:03:01]}
{[%emt 00:00:14]} Kg6 {[%clk 00:37:20]} {[%emt 00:01:03]} 46. Rd5 {[%clk
00:01:35]} {[%emt 00:01:56]} Rh7 {[%clk 00:34:16]} {[%emt 00:03:34]} 47. Bd2
{[%clk 00:00:38]} {[%emt 00:01:27]} Rh2+ {[%clk 00:33:49]} {[%emt 00:00:57]} 48.
Kd1 {[%clk 00:01:01]} {[%emt 00:00:07]} e3 {[%clk 00:32:53]} {[%emt 00:01:26]}
49. Bxe3 {[%clk 00:01:03]} {[%emt 00:00:28]} Rxb2 {[%clk 00:33:11]} {[%emt
00:00:12]} 50. Rd7 {[%clk 00:28:57]} {[%emt 00:02:36]} a5 {[%clk 01:01:16]}
{[%emt 00:02:25]} 51. Rb7 {[%clk 00:29:09]} {[%emt 00:00:18]} Bxc3 {[%clk
01:01:28]} {[%emt 00:00:19]} 52. Bc1 {[%clk 00:27:57]} {[%emt 00:01:41]} Rb4
{[%clk 01:00:54]} {[%emt 00:01:04]} 53. Kc2 {[%clk 00:27:54]} {[%emt 00:00:34]}
Be5 {[%clk 00:59:54]} {[%emt 00:01:29]} 54. Ba3 {[%clk 00:26:42]} {[%emt
00:01:42]} Rc4+ {[%clk 00:53:15]} {[%emt 00:07:09]} 55. Kb1 {[%clk 00:26:38]}
{[%emt 00:00:33]} Bc3 {[%clk 00:52:34]} {[%emt 00:01:11]} 56. Rxb6+ {[%clk
00:25:54]} {[%emt 00:01:15]} Kf5 {[%clk 00:52:53]} {[%emt 00:00:11]} 57. Rc6
{[%clk 00:26:05]} {[%emt 00:00:20]} Bb4 {[%clk 00:53:00]} {[%emt 00:00:21]} 58.
Bb2 {[%clk 00:26:27]} {[%emt 00:00:09]} Ke4 {[%clk 00:53:02]} {[%emt 00:00:26]}
59. Rd6 {[%clk 00:25:52]} {[%emt 00:01:06]} Ke3 {[%clk 00:52:45]} {[%emt
00:00:48]} 60. Re6+ {[%clk 00:22:30]} {[%emt 00:03:52]} Re4 {[%clk 00:49:23]}
{[%emt 00:03:52]} 61. Rxe4+ {[%clk 00:22:45]} {[%emt 00:00:16]} Kxe4 {[%clk
00:49:39]} {[%emt 00:00:13]} 62. Kc2 {[%clk 00:22:54]} {[%emt 00:00:21]} c4
{[%clk 00:48:51]} {[%emt 00:01:19]} 63. Bf6 {[%clk 00:22:40]} {[%emt 00:00:42]}
Kd5 {[%clk 00:48:32]} {[%emt 00:00:49]} 64. Bd8 {[%clk 00:22:38]} {[%emt
00:00:32]} Ke4 {[%clk 00:47:14]} {[%emt 00:01:48]} 65. Bc7 {[%clk 00:22:45]}
{[%emt 00:00:24]} Kd4 {[%clk 00:43:01]} {[%emt 00:04:43]} 66. Bb6+ {[%clk
00:22:21]} {[%emt 00:00:54]} Kd5 {[%clk 00:43:22]} {[%emt 00:00:09]} 67. Bd8
{[%clk 00:22:44]} {[%emt 00:00:07]} Kc6 {[%clk 00:43:42]} {[%emt 00:00:09]} 68.
Kb2 {[%clk 00:21:33]} {[%emt 00:01:42]} Be1 {[%clk 00:43:48]} {[%emt 00:00:24]}
69. Kc2 {[%clk 00:21:47]} {[%emt 00:00:17]} Kb7 {[%clk 00:40:28]} {[%emt
00:03:49]} 70. Kd1 {[%clk 00:21:42]} {[%emt 00:00:35]} Bb4 {[%clk 00:40:36]}
{[%emt 00:00:22]} 71. Kc2 {[%clk 00:22:06]} {[%emt 00:00:06]} Kc8 {[%clk
00:39:17]} {[%emt 00:01:48]} 72. Bb6 {[%clk 00:22:29]} {[%emt 00:00:08]} Kd7
{[%clk 00:39:43]} {[%emt 00:00:05]} 73. Kb2 {[%clk 00:22:40]} {[%emt 00:00:18]}
Kc6 {[%clk 00:37:17]} {[%emt 00:02:57]} 74. Bd8 {[%clk 00:23:02]} {[%emt
00:00:07]} Kd5 {[%clk 00:37:37]} {[%emt 00:00:10]} 75. Kc2 {[%clk 00:22:18]}
1/2-1/2

[Event "Schack-SM 2023: Veteran-SM 50+"]
[Site "Helsingborg Arena, Mellersta Stenbocksgatan 14, Helsingborg, Sweden"]
[Date "2023.07.05"]
[Round "5.2"]
[White "Petersson, Kjell"]
[Black "Nilsson, Patrik 1968"]
[Result "1/2-1/2"]
[TimeControl "90 minutes for 40 moves + 30 minutes for the rest of games + 30 seconds per move from move one."]
[WhiteTitle "CM"]
[WhiteElo "2061"]
[BlackElo "1931"]

1. d4 {[%clk 01:30:59]} {[%emt 19:02:50]} d6 {[%clk 01:30:42]} {[%emt
00:00:19]} 2. Nc3 {[%clk 01:30:11]} {[%emt 00:01:18]} Nf6 {[%clk 01:30:31]}
{[%emt 00:00:40]} 3. e4 {[%clk 01:30:22]} {[%emt 00:00:20]} Nbd7 {[%clk
01:30:37]} {[%emt 00:00:24]} 4. Nf3 {[%clk 01:30:20]} {[%emt 00:00:32]} e5
{[%clk 01:30:51]} {[%emt 00:00:15]} 5. h3 {[%clk 01:21:35]} {[%emt 00:09:16]}
c6 {[%clk 01:28:04]} {[%emt 00:03:17]} 6. Bd3 {[%clk 01:16:34]} {[%emt
00:05:31]} Be7 {[%clk 01:26:50]} {[%emt 00:01:43]} 7. Be3 {[%clk 01:12:20]}
{[%emt 00:04:45]} Qc7 {[%clk 01:25:06]} {[%emt 00:02:13]} 8. Qe2 {[%clk
01:01:47]} {[%emt 00:11:04]} a6 {[%clk 01:21:59]} {[%emt 00:03:37]} 9. a4
{[%clk 00:59:25]} {[%emt 00:02:52]} b6 {[%clk 01:19:28]} {[%emt 00:03:00]} 10.
O-O {[%clk 00:58:37]} {[%emt 00:01:19]} h6 {[%clk 01:18:46]} {[%emt 00:01:12]}
11. Rfe1 {[%clk 00:52:57]} {[%emt 00:06:11]} Nf8 {[%clk 01:15:59]} {[%emt
00:03:16]} 12. Bc4 {[%clk 00:45:37]} {[%emt 00:07:50]} g5 {[%clk 01:13:51]}
{[%emt 00:02:37]} 13. Nh2 {[%clk 00:42:39]} {[%emt 00:03:29]} Ng6 {[%clk
01:12:49]} {[%emt 00:01:31]} 14. dxe5 {[%clk 00:40:58]} {[%emt 00:02:12]}
1/2-1/2

[Event "Schack-SM 2023: Sverigemastarklassen"]
[Site "Helsingborg Arena, Mellersta Stenbocksgatan 14, Helsingborg, Sweden"]
[Date "2023.07.05"]
[Round "5.3"]
[White "Sivuk, Vitaly"]
[Black "Pantzar, Milton"]
[Result "1/2-1/2"]
[TimeControl "90 minutes for 40 moves + 30 minutes for the rest of the game + 30 seconds per move from move one."]
[WhiteTitle "GM"]
[BlackTitle "IM"]
[WhiteElo "2432"]
[BlackElo "2442"]

1. e4 {[%clk 01:26:27]} {[%emt 00:00:41]} c6 {[%clk 01:30:51]} {[%emt
00:00:09]} 2. d4 {[%clk 01:26:48]} {[%emt 00:00:09]} d5 {[%clk 01:31:15]}
{[%emt 00:00:07]} 3. Nd2 {[%clk 01:27:09]} {[%emt 00:00:08]} dxe4 {[%clk
01:31:22]} {[%emt 00:00:23]} 4. Nxe4 {[%clk 01:27:33]} {[%emt 00:00:06]} Nf6
{[%clk 01:31:44]} {[%emt 00:00:08]} 5. Nxf6+ {[%clk 01:27:52]} {[%emt
00:00:11]} exf6 {[%clk 01:32:07]} {[%emt 00:00:07]} 6. c3 {[%clk 01:28:14]}
{[%emt 00:00:08]} Bd6 {[%clk 01:32:13]} {[%emt 00:00:24]} 7. Bd3 {[%clk
01:28:35]} {[%emt 00:00:09]} O-O {[%clk 01:32:30]} {[%emt 00:00:14]} 8. Qc2
{[%clk 01:28:57]} {[%emt 00:00:07]} Re8+ {[%clk 01:32:53]} {[%emt 00:00:07]} 9.
Ne2 {[%clk 01:29:22]} {[%emt 00:00:05]} h6 {[%clk 01:31:59]} {[%emt 00:01:24]}
10. O-O {[%clk 01:29:37]} {[%emt 00:00:14]} Nd7 {[%clk 01:32:01]} {[%emt
00:00:28]} 11. Bd2 {[%clk 01:24:13]} {[%emt 00:05:53]} Qc7 {[%clk 01:26:08]}
{[%emt 00:06:24]} 12. Ng3 {[%clk 01:19:55]} {[%emt 00:04:47]} Nf8 {[%clk
01:23:58]} {[%emt 00:02:42]} 13. Rae1 {[%clk 01:17:40]} {[%emt 00:02:44]} Bd7
{[%clk 01:21:15]} {[%emt 00:03:14]} 14. Kh1 {[%clk 01:03:30]} {[%emt 00:14:40]}
c5 {[%clk 01:01:14]} {[%emt 00:20:32]} 15. dxc5 {[%clk 00:38:58]} {[%emt
00:25:01]} Bxc5 {[%clk 00:57:30]} {[%emt 00:04:14]} 16. Ne4 {[%clk 00:38:44]}
{[%emt 00:00:43]} Be7 {[%clk 00:55:44]} {[%emt 00:02:17]} 17. c4 {[%clk
00:33:10]} {[%emt 00:06:04]} Ne6 {[%clk 00:52:00]} {[%emt 00:04:15]} 18. Nc3
{[%clk 00:33:13]} {[%emt 00:00:26]} Bc6 {[%clk 00:38:53]} {[%emt 00:13:38]} 19.
Nd5 {[%clk 00:27:10]} {[%emt 00:06:33]} Bxd5 {[%clk 00:31:30]} {[%emt
00:07:55]} 20. cxd5 {[%clk 00:27:30]} {[%emt 00:00:09]} Qxc2 {[%clk 00:31:54]}
{[%emt 00:00:07]} 21. Bxc2 {[%clk 00:27:55]} {[%emt 00:00:04]} Nd4 {[%clk
00:31:58]} {[%emt 00:00:25]} 22. Bd3 {[%clk 00:24:56]} {[%emt 00:03:29]} Rad8
{[%clk 00:30:12]} {[%emt 00:02:17]} 23. Bc3 {[%clk 00:19:22]} {[%emt 00:06:04]}
Rxd5 {[%clk 00:20:48]} {[%emt 00:09:54]} 24. Bxd4 {[%clk 00:14:17]} {[%emt
00:05:34]} Kf8 {[%clk 00:20:38]} {[%emt 00:00:42]} 25. Bxa7 {[%clk 00:14:29]}
{[%emt 00:00:18]} Rxd3 {[%clk 00:20:45]} {[%emt 00:00:23]} 26. Be3 {[%clk
00:14:39]} {[%emt 00:00:19]} Ra8 {[%clk 00:17:19]} {[%emt 00:03:57]} 27. a3
{[%clk 00:14:51]} {[%emt 00:00:18]} f5 {[%clk 00:16:17]} {[%emt 00:01:32]} 28.
Rd1 {[%clk 00:14:32]} {[%emt 00:00:49]} Rad8 {[%clk 00:15:25]} {[%emt
00:01:22]} 29. Rxd3 {[%clk 00:14:06]} {[%emt 00:00:56]} Rxd3 {[%clk 00:15:50]}
{[%emt 00:00:06]} 30. g3 {[%clk 00:05:44]} {[%emt 00:08:52]} Bf6 {[%clk
00:13:31]} {[%emt 00:02:49]} 31. a4 {[%clk 00:04:07]} {[%emt 00:02:07]} Rb3
{[%clk 00:08:03]} {[%emt 00:05:58]} 32. Rc1 {[%clk 00:04:23]} {[%emt 00:00:13]}
Rxb2 {[%clk 00:06:59]} {[%emt 00:01:34]} 33. Rc8+ {[%clk 00:04:01]} {[%emt
00:00:53]} Ke7 {[%clk 00:07:25]} {[%emt 00:00:04]} 34. a5 {[%clk 00:04:25]}
{[%emt 00:00:06]} Rb5 {[%clk 00:05:05]} {[%emt 00:02:50]} 35. Rc7+ {[%clk
00:04:16]} {[%emt 00:00:39]} Ke6 {[%clk 00:03:14]} {[%emt 00:02:22]} 36. Bb6
{[%clk 00:04:41]} {[%emt 00:00:04]} Be5 {[%clk 00:02:43]} {[%emt 00:01:01]} 37.
Rxb7 {[%clk 00:04:57]} {[%emt 00:00:14]} Bd4 {[%clk 00:03:07]} {[%emt
00:00:06]} 38. f4 {[%clk 00:02:45]} {[%emt 00:02:41]} Rb1+ {[%clk 00:02:36]}
{[%emt 00:01:02]} 39. Kg2 {[%clk 00:03:09]} {[%emt 00:00:05]} Rb2+ {[%clk
00:03:03]} {[%emt 00:00:04]} 40. Kf1 {[%clk 00:03:24]} {[%emt 00:00:15]} Bxb6
{[%clk 00:02:21]} {[%emt 00:01:13]} 41. Rxb6+ {[%clk 00:27:00]} {[%emt
00:06:55]} Rxb6 {[%clk 00:32:41]} {[%emt 00:00:10]} 42. axb6 {[%clk 00:27:28]}
{[%emt 00:00:01]} Kd6 {[%clk 00:33:04]} {[%emt 00:00:07]} 43. Ke2 {[%clk
00:27:56]} {[%emt 00:00:02]} Kc6 {[%clk 00:33:14]} {[%emt 00:00:20]} 44. Kd3
{[%clk 00:28:22]} {[%emt 00:00:04]} Kxb6 {[%clk 00:33:38]} {[%emt 00:00:07]} 45.
Kd4 {[%clk 00:28:49]} {[%emt 00:00:02]} Kc6 {[%clk 00:32:50]} {[%emt 00:01:19]}
46. Ke5 {[%clk 00:29:14]} {[%emt 00:00:04]} Kd7 {[%clk 00:32:49]} {[%emt
00:00:32]} 47. Kxf5 {[%clk 00:29:24]} {[%emt 00:00:19]} Ke7 {[%clk 00:32:08]}
{[%emt 00:01:11]} 48. h4 {[%clk 00:29:25]} {[%emt 00:00:28]} Kd6 {[%clk
00:28:15]} {[%emt 00:04:23]} 49. h5 {[%clk 00:16:36]} {[%emt 00:13:19]} Ke7
{[%clk 00:25:09]} {[%emt 00:03:36]} 50. Ke5 {[%clk 00:12:40]} {[%emt 00:04:25]}
Kd7 {[%clk 00:25:09]} {[%emt 00:00:30]} 51. g4 {[%clk 00:11:18]} {[%emt
00:01:52]} Ke7 {[%clk 00:25:19]} {[%emt 00:00:21]} 52. Kf5 {[%clk 00:11:37]}
{[%emt 00:00:10]} Kd6 {[%clk 00:24:24]} {[%emt 00:01:25]} 53. g5 {[%clk
00:11:07]} {[%emt 00:00:59]} hxg5 {[%clk 00:24:49]} {[%emt 00:00:06]} 54. fxg5
{[%clk 00:11:20]} {[%emt 00:00:17]} Ke7 {[%clk 00:25:13]} {[%emt 00:00:07]} 55.
h6 {[%clk 00:08:49]} {[%emt 00:03:01]} gxh6 {[%clk 00:25:34]} {[%emt 00:00:09]}
56. gxh6 {[%clk 00:09:15]} {[%emt 00:00:04]} Kf8 {[%clk 00:25:59]} {[%emt
00:00:05]} 57. Kf6 {[%clk 00:09:40]} {[%emt 00:00:04]} Kg8 {[%clk 00:26:27]}
{[%emt 00:00:03]} 58. h7+ {[%clk 00:10:05]} {[%emt 00:00:05]} Kxh7 {[%clk
00:26:54]} {[%emt 00:00:04]} 59. Kxf7 {[%clk 00:10:32]} {[%emt 00:00:03]}
1/2-1/2

[Event "Schack-SM 2023: Mastarklassen-elit"]
[Site "Helsingborg Arena, Mellersta Stenbocksgatan 14, Helsingborg, Sweden"]
[Date "2023.07.05"]
[Round "5.2"]
[White "Lind, Jan-Olov"]
[Black "Torngren, Gustav"]
[Result "0-1"]
[TimeControl "90 minutes for 40 moves + 30 minutes for the rest of games + 30 seconds per move from move one."]
[BlackTitle "FM"]
[WhiteElo "2191"]
[BlackElo "2297"]

1. e4 {[%clk 01:30:56]} {[%emt 00:00:03]} e6 {[%clk 01:30:47]} {[%emt
00:00:15]} 2. d3 {[%clk 01:28:47]} {[%emt 00:02:37]} d5 {[%clk 01:30:59]}
{[%emt 00:00:19]} 3. Nd2 {[%clk 01:29:07]} {[%emt 00:00:10]} Nc6 {[%clk
01:30:38]} {[%emt 00:00:52]} 4. Ngf3 {[%clk 01:28:55]} {[%emt 00:00:43]} g5
{[%clk 01:27:58]} {[%emt 00:03:09]} 5. c3 {[%clk 01:21:36]} {[%emt 00:07:49]}
g4 {[%clk 01:19:16]} {[%emt 00:09:13]} 6. Ng1 {[%clk 01:20:51]} {[%emt
00:01:15]} h5 {[%clk 01:16:42]} {[%emt 00:03:04]} 7. d4 {[%clk 01:11:35]}
{[%emt 00:09:47]} f5 {[%clk 01:01:59]} {[%emt 00:15:11]} 8. exf5 {[%clk
01:04:31]} {[%emt 00:07:35]} exf5 {[%clk 01:02:22]} {[%emt 00:00:07]} 9. Bb5
{[%clk 01:03:00]} {[%emt 00:02:01]} Qf6 {[%clk 01:01:49]} {[%emt 00:01:03]} 10.
Nb3 {[%clk 00:55:17]} {[%emt 00:08:12]} Bd6 {[%clk 00:52:12]} {[%emt 00:10:07]}
11. Na5 {[%clk 00:47:32]} {[%emt 00:08:15]} Nge7 {[%clk 00:51:05]} {[%emt
00:01:37]} 12. Qa4 {[%clk 00:44:41]} {[%emt 00:03:21]} O-O {[%clk 00:47:37]}
{[%emt 00:03:58]} 13. Nxc6 {[%clk 00:39:27]} {[%emt 00:05:45]} bxc6 {[%clk
00:47:57]} {[%emt 00:00:10]} 14. Ba6 {[%clk 00:35:16]} {[%emt 00:04:41]} Qe6+
{[%clk 00:36:17]} {[%emt 00:12:10]} 15. Kf1 {[%clk 00:34:19]} {[%emt 00:01:27]}
Bxa6+ {[%clk 00:35:05]} {[%emt 00:01:43]} 16. Qxa6 {[%clk 00:34:41]} {[%emt
00:00:07]} f4 {[%clk 00:35:06]} {[%emt 00:00:29]} 17. Qe2 {[%clk 00:31:07]}
{[%emt 00:04:04]} Qg6 {[%clk 00:33:53]} {[%emt 00:01:43]} 18. h3 {[%clk
00:20:43]} {[%emt 00:10:53]} Nf5 {[%clk 00:32:31]} {[%emt 00:01:52]} 19. hxg4
{[%clk 00:20:27]} {[%emt 00:00:46]} hxg4 {[%clk 00:32:49]} {[%emt 00:00:11]} 20.
Bd2 {[%clk 00:19:13]} {[%emt 00:01:44]} Rae8 {[%clk 00:33:03]} {[%emt
00:00:17]} 21. Qd1 {[%clk 00:19:20]} {[%emt 00:00:23]} Ne3+ {[%clk 00:30:22]}
{[%emt 00:03:11]} 22. Bxe3 {[%clk 00:18:05]} {[%emt 00:01:46]} fxe3 {[%clk
00:30:40]} {[%emt 00:00:12]} 23. f3 {[%clk 00:18:03]} {[%emt 00:00:31]} gxf3
{[%clk 00:30:36]} {[%emt 00:00:34]} 24. gxf3 {[%clk 00:18:18]} {[%emt
00:00:15]} e2+ {[%clk 00:30:11]} {[%emt 00:00:55]} 25. Nxe2 {[%clk 00:18:06]}
{[%emt 00:00:42]} Rxf3+ {[%clk 00:30:33]} {[%emt 00:00:08]} 26. Ke1 {[%clk
00:18:15]} {[%emt 00:00:20]} Bg3+ {[%clk 00:30:40]} {[%emt 00:00:23]} 0-1